[Event "Live Chess"]
[Site "Chess.com"]
[Date "2024.06.01"]
[Round "-"]
[White "nigelst"]
[Black "DoctorMantisTobogganMD"]
[Result "0-1"]
[WhiteElo "1713"]
[BlackElo "2199"]
[TimeControl "300"]
[EndTime "10:30:43 PDT"]
[Termination "DoctorMantisTobogganMD won by resignation"]

1. e4 {[%clk 0:04:58]} 1... c6 {[%clk 0:04:59]} 2. d4 {[%clk 0:04:56]} 2... g6
{[%clk 0:04:58.9]} 3. Nc3 {[%clk 0:04:52.4]} 3... Bg7 {[%clk 0:04:57.8]} 4. f4
{[%clk 0:04:50.7]} 4... d5 {[%clk 0:04:57.2]} 5. e5 {[%clk 0:04:49.4]} 5... h5
{[%clk 0:04:56.4]} 6. Nf3 {[%clk 0:04:45.2]} 6... Bg4 {[%clk 0:04:54.5]} 7. h3
{[%clk 0:04:40.6]} 7... Bxf3 {[%clk 0:04:51.8]} 8. Qxf3 {[%clk 0:04:39.3]} 8...
e6 {[%clk 0:04:51.7]} 9. Be3 {[%clk 0:04:32.3]} 9... h4 {[%clk 0:04:50.5]} 10.
O-O-O {[%clk 0:04:28.7]} 10... Nd7 {[%clk 0:04:49.8]} 11. g3 {[%clk 0:04:26.8]}
11... hxg3 {[%clk 0:04:48.6]} 12. Qxg3 {[%clk 0:04:25.7]} 12... Qh4 {[%clk
0:04:47]} 13. Bf2 {[%clk 0:04:21.1]} 13... Qxg3 {[%clk 0:04:45.6]} 14. Bxg3
{[%clk 0:04:19.9]} 14... Nh6 {[%clk 0:04:45.5]} 15. Bd3 {[%clk 0:04:14.8]} 15...
a6 {[%clk 0:04:38.5]} 16. Rdf1 {[%clk 0:03:49.3]} 16... c5 {[%clk 0:04:20.3]}
17. Bf2 {[%clk 0:03:41]} 17... cxd4 {[%clk 0:04:17.4]} 18. Bxd4 {[%clk
0:03:38.9]} 18... Bf8 {[%clk 0:04:17]} 19. h4 {[%clk 0:03:30.8]} 19... Nf5
{[%clk 0:04:12.9]} 20. Bxf5 {[%clk 0:03:26.2]} 20... gxf5 {[%clk 0:04:12.8]} 21.
Rfg1 {[%clk 0:03:22.4]} 21... Bh6 {[%clk 0:04:11]} 22. Rf1 {[%clk 0:03:06.2]}
22... Rc8 {[%clk 0:04:08.6]} 23. Kd2 {[%clk 0:03:03.7]} 23... Rc4 {[%clk
0:04:06.3]} 24. Kd3 {[%clk 0:02:59.7]} 24... Nc5+ {[%clk 0:04:03.5]} 25. Bxc5
{[%clk 0:02:58.6]} 25... Rxc5 {[%clk 0:04:03.4]} 26. Ne2 {[%clk 0:02:53.8]}
26... Rc4 {[%clk 0:03:54.4]} 27. c3 {[%clk 0:02:50.8]} 27... b5 {[%clk 0:03:51]}
28. a3 {[%clk 0:02:36.9]} 28... Rg8 {[%clk 0:03:49.4]} 29. Rh3 {[%clk
0:02:30.4]} 29... Rg4 {[%clk 0:03:45.7]} 30. b3 {[%clk 0:02:16.3]} 30... Re4
{[%clk 0:03:41.1]} 31. Ng3 {[%clk 0:01:52.9]} 31... Rexf4 {[%clk 0:03:39.2]} 32.
Rxf4 {[%clk 0:01:49.4]} 32... Rxf4 {[%clk 0:03:38.3]} 33. Nh5 {[%clk 0:01:45.2]}
33... Rf1 {[%clk 0:03:30.8]} 34. Nf6+ {[%clk 0:01:43.2]} 34... Ke7 {[%clk
0:03:29.6]} 35. Ng8+ {[%clk 0:01:41.7]} 35... Kf8 {[%clk 0:03:27.4]} 36. Nxh6
{[%clk 0:01:40.2]} 36... Kg7 {[%clk 0:03:26.5]} 37. Nxf5+ {[%clk 0:01:29.2]}
37... Rxf5 {[%clk 0:03:25.1]} 38. Rg3+ {[%clk 0:01:27.8]} 38... Kh6 {[%clk
0:03:22.5]} 39. Rg4 {[%clk 0:01:21]} 39... Rxe5 {[%clk 0:03:18.5]} 40. a4 {[%clk
0:01:18.6]} 40... Kh5 {[%clk 0:03:14.1]} 41. Rf4 {[%clk 0:01:16.1]} 41... f5
{[%clk 0:03:10.8]} 42. axb5 {[%clk 0:01:13.5]} 42... axb5 {[%clk 0:03:10]} 43.
Rb4 {[%clk 0:01:05.9]} 43... Re1 {[%clk 0:02:58]} 44. Rxb5 {[%clk 0:01:01.4]}
44... Kxh4 {[%clk 0:02:56.8]} 45. Rb6 {[%clk 0:00:59.7]} 45... f4 {[%clk
0:02:54.9]} 46. Rb8 {[%clk 0:00:55.9]} 46... f3 {[%clk 0:02:53.1]} 47. Rf8
{[%clk 0:00:53.3]} 47... Kg3 {[%clk 0:02:51.7]} 48. Rg8+ {[%clk 0:00:51.8]}
48... Kh3 {[%clk 0:02:47.4]} 49. Rf8 {[%clk 0:00:49.9]} 49... Kg2 {[%clk
0:02:46.5]} 50. Rg8+ {[%clk 0:00:48.4]} 50... Kf1 {[%clk 0:02:45.6]} 51. c4
{[%clk 0:00:41.3]} 51... dxc4+ {[%clk 0:02:44.2]} 52. bxc4 {[%clk 0:00:40]}
52... f2 {[%clk 0:02:41.5]} 53. c5 {[%clk 0:00:37.3]} 53... Rc1 {[%clk
0:02:40.4]} 54. Re8 {[%clk 0:00:30.8]} 54... Kg2 {[%clk 0:02:20.6]} 55. Rg8+
{[%clk 0:00:28.2]} 55... Kh3 {[%clk 0:02:20]} 56. Rf8 {[%clk 0:00:24.9]} 56...
f1=Q+ {[%clk 0:02:18.9]} 0-1

[Event "Live Chess"]
[Site "Chess.com"]
[Date "2024.06.01"]
[Round "-"]
[White "DukeBG"]
[Black "road2gm5000"]
[Result "0-1"]
[WhiteElo "462"]
[BlackElo "1061"]
[TimeControl "300"]
[EndTime "10:31:05 PDT"]
[Termination "road2gm5000 won by resignation"]

1. Nf3 {[%clk 0:04:51]} 1... d5 {[%clk 0:04:57.9]} 2. d4 {[%clk 0:04:49.6]} 2...
Bg4 {[%clk 0:04:54.7]} 3. h3 {[%clk 0:04:44.6]} 3... Bh5 {[%clk 0:04:52.6]} 4.
g4 {[%clk 0:04:43.1]} 4... Bg6 {[%clk 0:04:51.5]} 5. h4 {[%clk 0:04:40.3]} 5...
Nf6 {[%clk 0:04:46]} 6. h5 {[%clk 0:04:34.7]} 6... Be4 {[%clk 0:04:45.5]} 7. Ng5
{[%clk 0:04:20.1]} 7... Bxh1 {[%clk 0:04:41.8]} 8. f3 {[%clk 0:04:12.9]} 8... h6
{[%clk 0:04:39.7]} 9. Nh3 {[%clk 0:04:01.9]} 9... e6 {[%clk 0:04:38.1]} 10. Nf4
{[%clk 0:03:56.4]} 10... Bd6 {[%clk 0:04:35.1]} 11. Bg2 {[%clk 0:03:51.1]} 11...
Bxg2 {[%clk 0:04:30.7]} 12. Nxg2 {[%clk 0:03:49.8]} 12... Bg3+ {[%clk
0:04:30.2]} 13. Kf1 {[%clk 0:03:44.4]} 13... Qd6 {[%clk 0:04:29.1]} 14. Nc3
{[%clk 0:03:26.9]} 14... Bh2 {[%clk 0:04:26.7]} 15. Nb5 {[%clk 0:02:54.3]} 15...
Qb6 {[%clk 0:04:06.3]} 16. Bf4 {[%clk 0:02:32]} 16... Na6 {[%clk 0:03:42.3]} 17.
Bxh2 {[%clk 0:02:14.1]} 17... Qxb5 {[%clk 0:03:40.2]} 18. Qd3 {[%clk 0:02:05.5]}
18... Qxb2 {[%clk 0:03:37.6]} 19. e4 {[%clk 0:01:15.4]} 19... Qxa1+ {[%clk
0:03:33.7]} 0-1

[Event "Live Chess"]
[Site "Chess.com"]
[Date "2024.06.01"]
[Round "-"]
[White "powerchs"]
[Black "Inglaterra"]
[Result "0-1"]
[WhiteElo "1254"]
[BlackElo "2036"]
[TimeControl "300"]
[EndTime "10:31:07 PDT"]
[Termination "Inglaterra won by resignation"]

1. e4 {[%clk 0:04:54.4]} 1... e5 {[%clk 0:04:58.5]} 2. Nf3 {[%clk 0:04:52.9]}
2... Nc6 {[%clk 0:04:58]} 3. Bb5 {[%clk 0:04:51.8]} 3... a6 {[%clk 0:04:56.5]}
4. Ba4 {[%clk 0:04:50.2]} 4... Nf6 {[%clk 0:04:55.7]} 5. O-O {[%clk 0:04:48.5]}
5... Be7 {[%clk 0:04:55]} 6. Re1 {[%clk 0:04:45.8]} 6... b5 {[%clk 0:04:53.7]}
7. Bb3 {[%clk 0:04:44.3]} 7... d6 {[%clk 0:04:53.2]} 8. c3 {[%clk 0:04:43.2]}
8... O-O {[%clk 0:04:50.2]} 9. Bc2 {[%clk 0:04:41.9]} 9... Re8 {[%clk 0:04:33]}
10. h3 {[%clk 0:04:40.2]} 10... Bb7 {[%clk 0:04:24.1]} 11. d3 {[%clk 0:04:37.8]}
11... Bf8 {[%clk 0:04:00.3]} 12. Nbd2 {[%clk 0:04:35]} 12... g6 {[%clk
0:03:51.4]} 13. Nf1 {[%clk 0:04:32.6]} 13... Bg7 {[%clk 0:03:47.6]} 14. Ne3
{[%clk 0:04:28.9]} 14... d5 {[%clk 0:03:40.5]} 15. exd5 {[%clk 0:04:25.6]} 15...
Nxd5 {[%clk 0:03:40.4]} 16. Nxd5 {[%clk 0:04:21.2]} 16... Qxd5 {[%clk
0:03:40.3]} 17. d4 {[%clk 0:04:02.7]} 17... exd4 {[%clk 0:03:34.4]} 18. cxd4
{[%clk 0:03:59.3]} 18... Nxd4 {[%clk 0:03:26.1]} 19. Rxe8+ {[%clk 0:03:48.9]}
19... Rxe8 {[%clk 0:03:26]} 20. Bb3 {[%clk 0:03:39.3]} 20... Nxf3+ {[%clk
0:03:16.7]} 21. Qxf3 {[%clk 0:03:36]} 21... Re1+ {[%clk 0:03:09.4]} 22. Kh2
{[%clk 0:03:33]} 22... Be5+ {[%clk 0:03:05.4]} 23. g3 {[%clk 0:03:31.7]} 23...
Qxf3 {[%clk 0:03:03.9]} 0-1

[Event "Live Chess"]
[Site "Chess.com"]
[Date "2024.06.01"]
[Round "-"]
[White "Tatarinov_Maxim"]
[Black "dl_chess"]
[Result "1-0"]
[WhiteElo "2298"]
[BlackElo "1170"]
[TimeControl "300"]
[EndTime "10:31:14 PDT"]
[Termination "Tatarinov_Maxim won on time"]

1. Nf3 {[%clk 0:04:56.6]} 1... Nf6 {[%clk 0:04:53.9]} 2. g3 {[%clk 0:04:53.1]}
2... g6 {[%clk 0:04:50.4]} 3. Bg2 {[%clk 0:04:52.4]} 3... Bg7 {[%clk 0:04:49.3]}
4. O-O {[%clk 0:04:52.1]} 4... d6 {[%clk 0:04:48.2]} 5. c4 {[%clk 0:04:51.5]}
5... O-O {[%clk 0:04:47.2]} 6. d4 {[%clk 0:04:51]} 6... Nc6 {[%clk 0:04:37.6]}
7. d5 {[%clk 0:04:49.2]} 7... Nb8 {[%clk 0:04:20.6]} 8. Nc3 {[%clk 0:04:47.2]}
8... e6 {[%clk 0:04:18.5]} 9. dxe6 {[%clk 0:04:45.3]} 9... Bxe6 {[%clk
0:04:16.4]} 10. Nd4 {[%clk 0:04:43.8]} 10... Bd7 {[%clk 0:04:13.6]} 11. Bxb7
{[%clk 0:04:41.6]} 11... c5 {[%clk 0:03:38.1]} 12. Ndb5 {[%clk 0:04:23.7]} 12...
Nc6 {[%clk 0:03:16.8]} 13. Bxa8 {[%clk 0:04:19.6]} 13... Qxa8 {[%clk 0:03:15.6]}
14. Qxd6 {[%clk 0:04:18.6]} 14... Bh3 {[%clk 0:02:58]} 15. Nd5 {[%clk
0:03:53.3]} 15... Nxd5 {[%clk 0:02:46.7]} 16. cxd5 {[%clk 0:03:53.2]} 16... Nd4
{[%clk 0:02:45.3]} 17. Nxd4 {[%clk 0:03:50.8]} 17... Bxd4 {[%clk 0:02:41.7]} 18.
Bg5 {[%clk 0:03:42.3]} 18... Qe8 {[%clk 0:02:20]} 19. Bh6 {[%clk 0:03:32.6]}
19... Bg7 {[%clk 0:01:56]} 20. Bxg7 {[%clk 0:03:30.5]} 20... Kxg7 {[%clk
0:01:54.2]} 21. Qxc5 {[%clk 0:03:09.6]} 21... Bxf1 {[%clk 0:01:29.6]} 22. Kxf1
{[%clk 0:03:00.1]} 22... Qd7 {[%clk 0:01:09.2]} 23. Qd4+ {[%clk 0:02:56.8]}
23... Kg8 {[%clk 0:01:07.1]} 24. d6 {[%clk 0:02:51.3]} 24... Re8 {[%clk
0:00:57.6]} 25. e3 {[%clk 0:02:46.2]} 25... Re6 {[%clk 0:00:44.8]} 26. Rd1
{[%clk 0:02:43.6]} 26... Kf8 {[%clk 0:00:19.8]} 27. b3 {[%clk 0:02:33.2]} 27...
f6 {[%clk 0:00:18.5]} 28. Qd5 {[%clk 0:02:27]} 28... Re5 {[%clk 0:00:10.9]} 29.
Qa8+ {[%clk 0:02:22.6]} 29... Kf7 {[%clk 0:00:07.9]} 30. Qf3 {[%clk 0:02:06.1]}
30... Ra5 {[%clk 0:00:05]} 31. a4 {[%clk 0:02:04.1]} 31... Ra6 {[%clk
0:00:01.1]} 32. Qd5+ {[%clk 0:02:02.3]} 1-0

[Event "Live Chess"]
[Site "Chess.com"]
[Date "2024.06.01"]
[Round "-"]
[White "Berdgross"]
[Black "Zhevzh1k7"]
[Result "0-1"]
[WhiteElo "591"]
[BlackElo "1084"]
[TimeControl "300"]
[EndTime "10:31:20 PDT"]
[Termination "Zhevzh1k7 won by resignation"]

1. e4 {[%clk 0:04:54.8]} 1... c6 {[%clk 0:04:58.6]} 2. d3 {[%clk 0:04:54.7]}
2... d5 {[%clk 0:04:55.7]} 3. Nf3 {[%clk 0:04:54.6]} 3... dxe4 {[%clk
0:04:54.4]} 4. dxe4 {[%clk 0:04:52.8]} 4... Qxd1+ {[%clk 0:04:54.3]} 5. Kxd1
{[%clk 0:04:50]} 5... Bg4 {[%clk 0:04:53.9]} 6. h3 {[%clk 0:04:48]} 6... Bxf3+
{[%clk 0:04:52.8]} 7. gxf3 {[%clk 0:04:47.3]} 7... Nd7 {[%clk 0:04:51.1]} 8. Nc3
{[%clk 0:04:45.1]} 8... O-O-O {[%clk 0:04:49.9]} 9. a3 {[%clk 0:04:43.5]} 9...
Ne5+ {[%clk 0:04:48.7]} 10. Ke2 {[%clk 0:04:40.8]} 10... Nf6 {[%clk 0:04:45.3]}
11. f4 {[%clk 0:04:38.8]} 11... Nc4 {[%clk 0:04:41]} 12. Ke1 {[%clk 0:04:35.9]}
12... e5 {[%clk 0:04:39.6]} 13. Bxc4 {[%clk 0:04:32.4]} 13... exf4 {[%clk
0:04:38.4]} 14. Bxf7 {[%clk 0:04:27.7]} 14... Bc5 {[%clk 0:04:34.9]} 15. Bxf4
{[%clk 0:04:20.4]} 15... Rhf8 {[%clk 0:04:30.1]} 16. Be6+ {[%clk 0:04:15.5]}
16... Nd7 {[%clk 0:04:26.1]} 17. Bxd7+ {[%clk 0:04:13.8]} 17... Rxd7 {[%clk
0:04:24.4]} 18. Rd1 {[%clk 0:04:10]} 18... Rxf4 {[%clk 0:04:21.9]} 19. Rxd7
{[%clk 0:04:04.9]} 19... Kxd7 {[%clk 0:04:20.3]} 20. Rg1 {[%clk 0:03:57.5]}
20... Bxf2+ {[%clk 0:04:16.9]} 21. Ke2 {[%clk 0:03:53.5]} 21... Bxg1 {[%clk
0:04:15.9]} 0-1

[Event "Live Chess"]
[Site "Chess.com"]
[Date "2024.06.01"]
[Round "-"]
[White "nitrofish07"]
[Black "Ocelot32"]
[Result "1-0"]
[WhiteElo "2141"]
[BlackElo "1388"]
[TimeControl "300"]
[EndTime "10:31:21 PDT"]
[Termination "nitrofish07 won by resignation"]

1. d4 {[%clk 0:04:59.1]} 1... Nf6 {[%clk 0:04:57.5]} 2. c4 {[%clk 0:04:58.3]}
2... e6 {[%clk 0:04:55.9]} 3. g3 {[%clk 0:04:57.1]} 3... d5 {[%clk 0:04:53.7]}
4. Bg2 {[%clk 0:04:56.7]} 4... c6 {[%clk 0:04:51.9]} 5. Nf3 {[%clk 0:04:56]}
5... Be7 {[%clk 0:04:50.9]} 6. O-O {[%clk 0:04:55.7]} 6... O-O {[%clk
0:04:49.7]} 7. Nc3 {[%clk 0:04:55.5]} 7... Nbd7 {[%clk 0:04:47.2]} 8. Nd2 {[%clk
0:04:54.5]} 8... Rb8 {[%clk 0:04:44.8]} 9. a4 {[%clk 0:04:53.1]} 9... b6 {[%clk
0:04:43.8]} 10. e4 {[%clk 0:04:52]} 10... dxe4 {[%clk 0:04:42.2]} 11. Ndxe4
{[%clk 0:04:51.9]} 11... c5 {[%clk 0:04:41.2]} 12. d5 {[%clk 0:04:47.4]} 12...
exd5 {[%clk 0:04:39.1]} 13. cxd5 {[%clk 0:04:43.6]} 13... Bb7 {[%clk 0:04:26.6]}
14. d6 {[%clk 0:04:40.6]} 14... Nxe4 {[%clk 0:04:21.7]} 15. dxe7 {[%clk
0:04:38.2]} 15... Qxe7 {[%clk 0:04:18.6]} 16. Nxe4 {[%clk 0:04:35.2]} 16... Bxe4
{[%clk 0:04:15.8]} 17. Bxe4 {[%clk 0:04:34.3]} 17... Qxe4 {[%clk 0:04:14.9]} 18.
Qxd7 {[%clk 0:04:33.9]} 18... Rfd8 {[%clk 0:04:13.6]} 19. Qh3 {[%clk 0:04:29]}
19... g6 {[%clk 0:04:10]} 20. Qg2 {[%clk 0:04:25.9]} 20... Qe2 {[%clk
0:04:07.6]} 21. Bf4 {[%clk 0:04:21.6]} 21... Rbc8 {[%clk 0:04:05.9]} 22. b3
{[%clk 0:04:17.7]} 22... Rd3 {[%clk 0:04:03.9]} 23. Rab1 {[%clk 0:03:58.5]}
23... Rcd8 {[%clk 0:04:02.3]} 24. Rfe1 {[%clk 0:03:51.3]} 24... Qg4 {[%clk
0:03:48.2]} 25. h3 {[%clk 0:03:48.6]} 25... Qh5 {[%clk 0:03:37]} 26. a5 {[%clk
0:03:33.4]} 26... Rd1 {[%clk 0:03:25.4]} 27. g4 {[%clk 0:03:19.2]} 27... Rxe1+
{[%clk 0:03:16.3]} 28. Rxe1 {[%clk 0:03:18.1]} 28... Qd5 {[%clk 0:03:11.9]} 29.
Qxd5 {[%clk 0:03:15.1]} 29... Rxd5 {[%clk 0:03:11.5]} 30. Bh6 {[%clk 0:03:13.7]}
30... Rd8 {[%clk 0:03:08.2]} 31. axb6 {[%clk 0:03:12.1]} 31... axb6 {[%clk
0:03:07.3]} 32. Re7 {[%clk 0:03:12]} 32... b5 {[%clk 0:03:03.7]} 33. Rb7 {[%clk
0:03:09.3]} 33... c4 {[%clk 0:03:01.5]} 34. bxc4 {[%clk 0:03:08.6]} 34... bxc4
{[%clk 0:03:00.5]} 35. Rc7 {[%clk 0:03:08.2]} 35... Rd1+ {[%clk 0:02:57.7]} 36.
Kg2 {[%clk 0:03:06.4]} 36... Rd8 {[%clk 0:02:56.9]} 37. Rxc4 {[%clk 0:03:05.1]}
37... f5 {[%clk 0:02:54.2]} 38. gxf5 {[%clk 0:03:03.2]} 38... gxf5 {[%clk
0:02:53.1]} 39. Bg5 {[%clk 0:03:01.3]} 39... Rd6 {[%clk 0:02:49.4]} 40. h4
{[%clk 0:02:57]} 40... Rg6 {[%clk 0:02:48.2]} 41. Kh3 {[%clk 0:02:52.7]} 41...
h6 {[%clk 0:02:47.3]} 42. Bf4 {[%clk 0:02:51.9]} 42... Kf7 {[%clk 0:02:45.6]}
43. Rc7+ {[%clk 0:02:50.8]} 43... Ke8 {[%clk 0:02:41.7]} 44. Rh7 {[%clk
0:02:49.8]} 44... Kf8 {[%clk 0:02:39.6]} 45. Rxh6 {[%clk 0:02:48.7]} 45... Rg7
{[%clk 0:02:36.8]} 46. Rf6+ {[%clk 0:02:45.7]} 46... Ke8 {[%clk 0:02:35.3]} 47.
Rxf5 {[%clk 0:02:44.1]} 47... Rd7 {[%clk 0:02:32.8]} 48. Bg5 {[%clk 0:02:42.5]}
48... Rd3+ {[%clk 0:02:30.7]} 49. f3 {[%clk 0:02:41]} 1-0

[Event "Live Chess"]
[Site "Chess.com"]
[Date "2024.06.01"]
[Round "-"]
[White "febray_27"]
[Black "mychess51"]
[Result "1/2-1/2"]
[WhiteElo "1987"]
[BlackElo "1857"]
[TimeControl "300"]
[EndTime "10:31:23 PDT"]
[Termination "Game drawn - timeout vs insufficient material"]

1. Nf3 {[%clk 0:04:55.2]} 1... e6 {[%clk 0:04:58.9]} 2. d4 {[%clk 0:04:52.4]}
2... Nf6 {[%clk 0:04:58.3]} 3. g3 {[%clk 0:04:51.4]} 3... d5 {[%clk 0:04:57.5]}
4. Bg2 {[%clk 0:04:51]} 4... c5 {[%clk 0:04:56.9]} 5. O-O {[%clk 0:04:50.4]}
5... cxd4 {[%clk 0:04:55.3]} 6. Nxd4 {[%clk 0:04:48.3]} 6... Nc6 {[%clk
0:04:54.8]} 7. c4 {[%clk 0:04:47.2]} 7... Nxd4 {[%clk 0:04:52.6]} 8. Qxd4 {[%clk
0:04:45.8]} 8... Be7 {[%clk 0:04:51.5]} 9. Nc3 {[%clk 0:04:42.1]} 9... O-O
{[%clk 0:04:40.3]} 10. cxd5 {[%clk 0:04:41]} 10... exd5 {[%clk 0:04:38.5]} 11.
Nxd5 {[%clk 0:04:40.2]} 11... Nxd5 {[%clk 0:04:30.2]} 12. Qxd5 {[%clk 0:04:39]}
12... Rb8 {[%clk 0:04:25.2]} 13. Bf4 {[%clk 0:04:35.5]} 13... Qxd5 {[%clk
0:04:23.9]} 14. Bxd5 {[%clk 0:04:34.1]} 14... Ra8 {[%clk 0:04:23]} 15. Rac1
{[%clk 0:04:27.3]} 15... Bf6 {[%clk 0:04:16]} 16. b3 {[%clk 0:04:25.5]} 16... a5
{[%clk 0:04:14.9]} 17. a4 {[%clk 0:04:22.6]} 17... Ra6 {[%clk 0:04:11.4]} 18. e4
{[%clk 0:04:20.7]} 18... Bb2 {[%clk 0:03:55.2]} 19. Rc2 {[%clk 0:04:16.5]} 19...
Ba3 {[%clk 0:03:46.8]} 20. Rc7 {[%clk 0:04:01]} 20... Bd6 {[%clk 0:03:10.9]} 21.
Bxd6 {[%clk 0:03:55.2]} 21... Rxd6 {[%clk 0:03:09.8]} 22. Rfc1 {[%clk
0:03:54.8]} 22... Be6 {[%clk 0:03:04.2]} 23. Bxe6 {[%clk 0:03:45.7]} 23... Rxe6
{[%clk 0:03:02.8]} 24. f3 {[%clk 0:03:43.4]} 24... Rb6 {[%clk 0:02:48.5]} 25.
R1c3 {[%clk 0:03:39.7]} 25... g6 {[%clk 0:02:44.8]} 26. Kf2 {[%clk 0:03:38.4]}
26... Rd8 {[%clk 0:02:35.7]} 27. Ke3 {[%clk 0:03:28.7]} 27... Rd1 {[%clk
0:02:33.1]} 28. h4 {[%clk 0:03:27.1]} 28... Rb1 {[%clk 0:02:24.9]} 29. Kf4
{[%clk 0:03:03.7]} 29... R1xb3 {[%clk 0:02:19.5]} 30. R3c4 {[%clk 0:03:01.3]}
30... Rf6+ {[%clk 0:02:07.7]} 31. Ke5 {[%clk 0:02:48.5]} 31... Rfxf3 {[%clk
0:02:04.6]} 32. R7c5 {[%clk 0:02:44.5]} 32... b6 {[%clk 0:01:59.4]} 33. Rb5
{[%clk 0:02:43]} 33... Rxg3 {[%clk 0:01:52.2]} 34. Rxb3 {[%clk 0:02:35.3]} 34...
Rxb3 {[%clk 0:01:50]} 35. Kf6 {[%clk 0:02:35.2]} 35... Rf3+ {[%clk 0:01:30.2]}
36. Kg5 {[%clk 0:02:33.6]} 36... Kg7 {[%clk 0:01:26.2]} 37. Kg4 {[%clk
0:02:23.6]} 37... Rf6 {[%clk 0:01:21.4]} 38. e5 {[%clk 0:02:21.2]} 38... h5+
{[%clk 0:01:16.9]} 39. Kg3 {[%clk 0:02:15.6]} 39... Re6 {[%clk 0:01:14.8]} 40.
Kf4 {[%clk 0:02:14]} 40... Kh6 {[%clk 0:01:11.7]} 41. Rc7 {[%clk 0:02:11.6]}
41... Kg7 {[%clk 0:01:01.1]} 42. Rd7 {[%clk 0:02:06.3]} 42... Rc6 {[%clk
0:00:59.5]} 43. Rd4 {[%clk 0:01:58.6]} 43... Kh6 {[%clk 0:00:45.4]} 44. Re4
{[%clk 0:01:32]} 44... Re6 {[%clk 0:00:41.2]} 45. Rc4 {[%clk 0:01:30.2]} 45...
f6 {[%clk 0:00:38.4]} 46. exf6 {[%clk 0:01:22]} 46... Rxf6+ {[%clk 0:00:37.2]}
47. Kg3 {[%clk 0:01:20.8]} 47... g5 {[%clk 0:00:32.7]} 48. hxg5+ {[%clk
0:01:18.9]} 48... Kxg5 {[%clk 0:00:31.9]} 49. Rd4 {[%clk 0:01:17.4]} 49... Kg6
{[%clk 0:00:27.1]} 50. Kh4 {[%clk 0:01:16.1]} 50... Rc6 {[%clk 0:00:21.3]} 51.
Re4 {[%clk 0:01:12.4]} 51... Kf5 {[%clk 0:00:17.9]} 52. Rd4 {[%clk 0:01:10]}
52... Ke5 {[%clk 0:00:16.8]} 53. Rd8 {[%clk 0:00:58]} 53... Rc4+ {[%clk
0:00:15.6]} 54. Kxh5 {[%clk 0:00:57.9]} 54... Rxa4 {[%clk 0:00:14.2]} 55. Kg5
{[%clk 0:00:56.9]} 55... b5 {[%clk 0:00:12.3]} 56. Re8+ {[%clk 0:00:53.9]} 56...
Kd5 {[%clk 0:00:10.5]} 57. Kf5 {[%clk 0:00:53.8]} 57... b4 {[%clk 0:00:08.4]}
58. Rd8+ {[%clk 0:00:53.7]} 58... Kc4 {[%clk 0:00:07.6]} 59. Ke5 {[%clk
0:00:53.2]} 59... b3 {[%clk 0:00:06.9]} 60. Rd4+ {[%clk 0:00:50.7]} 60... Kb5
{[%clk 0:00:05.4]} 61. Rd2 {[%clk 0:00:49.8]} 61... Rb4 {[%clk 0:00:04.4]} 62.
Rb2 {[%clk 0:00:49]} 62... a4 {[%clk 0:00:04.3]} 63. Kd5 {[%clk 0:00:47.9]}
63... a3 {[%clk 0:00:04.2]} 64. Rb1 {[%clk 0:00:46.9]} 64... b2 {[%clk
0:00:03.6]} 65. Rxb2 {[%clk 0:00:46.8]} 65... axb2 {[%clk 0:00:02.6]} 66. Ke5
{[%clk 0:00:46.5]} 66... b1=Q {[%clk 0:00:01.2]} 67. Kd5 {[%clk 0:00:46.4]}
67... Qd1+ {[%clk 0:00:00.1]} 68. Ke5 {[%clk 0:00:46.3]} 1/2-1/2

[Event "Live Chess"]
[Site "Chess.com"]
[Date "2024.06.01"]
[Round "-"]
[White "DavrosLight"]
[Black "viktorskliarov"]
[Result "0-1"]
[WhiteElo "764"]
[BlackElo "2643"]
[TimeControl "300"]
[EndTime "10:31:25 PDT"]
[Termination "viktorskliarov won by checkmate"]

1. e4 {[%clk 0:04:57.6]} 1... c5 {[%clk 0:04:59.2]} 2. Nf3 {[%clk 0:04:55.8]}
2... Nc6 {[%clk 0:04:58.7]} 3. d4 {[%clk 0:04:54.5]} 3... cxd4 {[%clk
0:04:57.1]} 4. Nxd4 {[%clk 0:04:53.9]} 4... Nf6 {[%clk 0:04:56.8]} 5. Nxc6
{[%clk 0:04:52.7]} 5... bxc6 {[%clk 0:04:55.8]} 6. e5 {[%clk 0:04:51.8]} 6...
Nd5 {[%clk 0:04:54.9]} 7. Bc4 {[%clk 0:04:50.8]} 7... Qc7 {[%clk 0:04:46.3]} 8.
Qh5 {[%clk 0:04:34.3]} 8... g6 {[%clk 0:04:36.8]} 9. Qe2 {[%clk 0:04:28.9]} 9...
Bg7 {[%clk 0:04:33]} 10. Bxd5 {[%clk 0:04:23.3]} 10... cxd5 {[%clk 0:04:31.6]}
11. Bf4 {[%clk 0:04:20.6]} 11... a5 {[%clk 0:04:28.3]} 12. O-O {[%clk
0:04:19.6]} 12... Ba6 {[%clk 0:04:26.8]} 13. Qd2 {[%clk 0:04:08.5]} 13... Bxf1
{[%clk 0:04:23.6]} 14. Qxd5 {[%clk 0:04:03.2]} 14... O-O {[%clk 0:04:20.5]} 15.
e6 {[%clk 0:03:55.4]} 15... Qxf4 {[%clk 0:04:18.5]} 16. exf7+ {[%clk 0:03:51.4]}
16... Qxf7 {[%clk 0:04:17.6]} 17. Qxd7 {[%clk 0:03:43.2]} 17... Qxf2+ {[%clk
0:04:15.1]} 18. Kh1 {[%clk 0:03:38.1]} 18... Bxg2# {[%clk 0:04:15]} 0-1